Cogmind - Beta 14 @@@ ROGUE MODE // 2024.09.02 @ 19:55:05 Player: ILikeVoltron Result: Core destroyed Performance ------------- Evolutions (1) 500 Regions Visited (3) 600 Robots Destroyed (56) 280 Value Destroyed (1518) 1518 Prototype IDs (7) 140 Alien Tech Used (0) 0 Bonus (251) 251 TOTAL SCORE: 3289 Bonus ------- High Alert Combat Kills 139 Follower Combat Kills 112 Cogmind --------- Core Integrity 0/400 Matter 290/300 Energy 169/280 System Corruption 5% Temperature Critical (552) Movement Walking (190) Ox1 Location -9/Storage Parts ------- > --- POWER (1) -------- Cooled Ion Engine > --- PROPULSION (3) --- Aluminum Leg Aluminum Leg > --- UTILITY (3) ------ Heat Sink Large Storage Unit Machine Analyzer > --- WEAPON (2) ------- Compact Ion Cannon > --- INVENTORY (15) --- Small Matter Pod (50) Improved Terrain Scanner Improved Targeting Computer Improved Targeting Computer Hardened Light Armor Plating Tractor Beam Improved Assault Rifle Grenade Launcher Grenade Launcher Heavy Hammer Peak State ------------ > --- POWER ------------ Heavy Ion Engine > --- PROPULSION ------- Aluminum Leg Improved Aluminum Leg Armored Wheel > --- UTILITY ---------- Medium Storage Unit Tractor Beam Drone Bay > --- WEAPON ----------- Improved Assault Rifle Improved Assault Rifle > --- INVENTORY -------- Aluminum Leg Heat Sink Improved Heat Sink Small Matter Pod Small Matter Pod Improved Terrain Scanner Seismic Detector Grenade Launcher Grenade Launcher Flail [Rating: 22] Favorites ----------- Power Heavy Ion Engine Engine Heavy Ion Engine Propulsion Aluminum Leg Treads Light Treads Leg Aluminum Leg Wheel Armored Wheel Utility Medium Storage Unit Device Improved Heat Sink Storage Medium Storage Unit Processor Machine Analyzer Protection Light Armor Plating Weapon Heavy Assault Rifle Energy Gun Small Laser Energy Cannon Compact Ion Cannon Ballistic Gun Heavy Assault Rifle Launcher Grenade Launcher Impact Weapon Heavy Hammer Build | -11 -10 -9 -9 ------- Run | Yrd Mat Mat Sto Slots Evolved 2 | . . 2 . Power . | . . . . Propulsion 1 | . . 1 . Utility 1 | . . 1 . Weapon . | . . . . Parts Attached 57 | 2 1 5 49 Power 5 | . 1 . 4 Engine 5 | . 1 . 4 Core . | . . . . Reactor . | . . . . Propulsion 16 | . . 3 13 Treads 1 | . . 1 . Leg 14 | . . 2 12 Wheel 1 | . . . 1 Hover . | . . . . Flight . | . . . . Utility 15 | 1 . 2 12 Device 9 | 1 . 2 6 Storage 2 | . . . 2 Processor 1 | . . . 1 Hackware . | . . . . Protection 3 | . . . 3 Artifact . | . . . . Weapon 21 | 1 . . 20 Energy Gun 5 | . . . 5 Energy Cannon 2 | . . . 2 Ballistic Gun 9 | 1 . . 8 Ballistic Cannon . | . . . . Launcher 1 | . . . 1 Special Weapon . | . . . . Impact Weapon 4 | . . . 4 Slashing Weapon . | . . . . Piercing Weapon . | . . . . Special Melee Weapon . | . . . . Unidentified Prototypes 7 | . . . 7 Parts Lost 10 | . . . 10 Power . | . . . . Propulsion 5 | . . . 5 Utility 3 | . . . 3 Weapon 2 | . . . 2 Highest Loss Streak 3 | . . . 3 To Critical Strikes . | . . . . Average Slot Usage (%) 99 | . 100 100 98 Engine 11 | . 14 11 10 Treads 1 | . . 11 1 Leg 24 | . 28 22 24 Wheel 5 | . . . 7 Device 16 | . 14 22 16 Storage 11 | . 14 11 11 Processor 2 | . . . 2 Protection 1 | . . . 2 Energy Gun 5 | . 14 11 3 Ballistic Gun 11 | . 14 11 11 Impact Weapon 3 | . . . 4 Peak Build Rating 22 | 10 10 12 22 Average Rating 15 | 8 9 11 17 On Entrance 9 | 6 10 10 11 Naked Turns . | . . . . Heaviest Build 36 | 12 14 15 36 Greatest Support 30 | 20 20 26 30 Greatest Overweight (x) 2 | . . . 2 Average Overweight (x) . | . . . . Largest Inventory Capacity 15 | 8 8 8 15 Average Capacity 9 | 8 8 8 9 Most Carried 11 | 8 8 8 11 Average Carried 9 | 6 7 7 9 Final Capacity 15 | 8 8 8 15 Final Carried 10 | 8 8 8 10 Class Distribution -------------------- 51% | Scavenger-Mutant 47% | Mutant Dominant Class ---------------- Mutant | -10/Materials Mutant | -9/Materials Scavenger-Mutant | -9/Storage Resources | -11 -10 -9 -9 ----------- Run | Yrd Mat Mat Sto Matter Collected 1397 | 294 48 80 975 Remotely 271 | . . . 271 Salvage Created 2118 | 206 184 80 1648 Parts 132 | 20 10 5 97 Haulers Intercepted 3 | . . . 3 Recyclers Shooed . | . . . . Parts Field Recycled . | . . . . Retrieved Matter . | . . . . Parts Self-Destructed . | . . . . Prevented . | . . . . Kills | -11 -10 -9 -9 ------- Run | Yrd Mat Mat Sto Combat Hostiles Destroyed 35 | . 4 2 29 Melee 1 | . . . 1 Guns 31 | . 4 2 25 Cannons 1 | . . . 1 AOE 1 | . . . 1 Classes Destroyed 12 | 3 2 . 7 Worker 3 | 2 . . 1 Builder 4 | . . . 4 Tunneler 5 | 5 . . . Hauler 3 | . . . 3 Recycler 4 | 1 1 . 2 Mechanic 1 | . . . 1 Watcher 1 | . . . 1 Swarmer 3 | . 2 . 1 Grunt 23 | . 2 2 19 Duelist 1 | . . . 1 Protector 1 | . . . 1 Sentry 7 | . . . 7 Best Kill Streak 5 | 4 5 1 5 Combat Bots Only 4 | . 4 1 4 Max Kills in Single Turn 2 | 1 1 1 2 Gunslinging . | . . . . Exploded 1 | . . . 1 Melee 1 | . . . 1 Uniques/NPCs Destroyed . | . . . . Combat | -11 -10 -9 -9 -------- Run | Yrd Mat Mat Sto Hostile Shots Fired 251 | . 23 16 212 Missed 69 | . 10 3 56 Damage Taken 2683 | . 118 151 2414 Core 478 | . 29 71 378 Absorbed by Shields . | . . . . Core Remaining (%) 94 | 100 88 . . Volleys Fired 170 | 25 16 11 118 Largest 2 | 2 2 2 2 Hottest 113 | 60 60 60 113 Shots Fired 304 | 46 31 22 205 Gun 291 | 46 31 22 192 Cannon 9 | . . . 9 Launcher 4 | . . . 4 Special . | . . . . Kinetic 196 | 25 16 11 144 Thermal 102 | 21 15 11 55 Explosive 4 | . . . 4 Electromagnetic 2 | . . . 2 Robot Hit Streak 22 | 5 6 7 22 Robot Miss Streak 6 | 3 6 1 3 Penetration Max . | . . . . Secondary Targets 3 | . . . 3 Max Gunslinging Chain 1 | . . . 1 Shots Hit Robots 208 | 27 16 17 148 Core Hits 88 | 14 8 4 62 Critical Kills . | . . . . Critical Parts Destroyed 2 | . . . 2 Critical Strikes 3 | . . . 3 Burn 1 | . . . 1 Destroy 1 | . . . 1 Smash 1 | . . . 1 Melee Attacks 35 | . . . 35 Impact 35 | . . . 35 Slashing . | . . . . Piercing . | . . . . Sneak Attacks 4 | . . . 4 Combat Hostiles . | . . . . Follow-up Attacks . | . . . . Damage Inflicted 3668 | 269 192 209 2998 Guns 2640 | 269 192 209 1970 Cannons 136 | . . . 136 Explosions 259 | . . . 259 Melee 633 | . . . 633 Ramming . | . . . . Kinetic 1888 | 116 89 140 1543 Thermal 844 | 153 103 69 519 Explosive 259 | . . . 259 Electromagnetic 44 | . . . 44 Impact 633 | . . . 633 Slashing . | . . . . Piercing . | . . . . Highest Corruption 5 | . . . 5 Average Corruption 5 | . . . 5 Corruption Purged . | . . . . Corruption Blocked . | . . . . Effects 27 | . . . 27 Message Errors 7 | . . . 7 Matter Fused 5 | . . . 5 Heat Flow Errors 6 | . . . 6 Energy Discharges 2 | . . . 2 Data Loss (minor) 3 | . . . 3 Misfires 1 | . . . 1 Weapon Failures 3 | . . . 3 Overload Shots . | . . . . Overflow Damage 257 | . . . 257 Projectiles . | . . . . Explosions 10 | . . . 10 Melee 247 | . . . 247 Knockbacks 2 | . . . 2 Impact 2 | . . . 2 Kinetic . | . . . . Secondary . | . . . . Self-Inflicted Damage 44 | . . . 44 Shots 2 | . . . 2 Rammed . | . . . . Targets Rammed . | . . . . Kicked . | . . . . Crushed . | . . . . Highest Temperature 581 | 60 18 3 581 Average Temperature 85 | 23 12 3 109 Received Heat Transfer 1140 | . 24 75 1041 Effects 12 | . . . 12 Energy Bleed 2 | . . . 2 Damage (major) 9 | . . . 9 Damage (core) 1 | . . . 1 Siege Activations . | . . . . Robots Corrupted 3 | . . . 3 Combat Hostiles 1 | . . . 1 Parts Fried 4 | . . . 4 Impact Corruptions 9 | . . . 9 Robots Melted . | . . . . Combat Hostiles . | . . . . Parts Melted 3 | . . 1 2 Heat Transferred 1870 | 350 225 150 1145 Parts Sabotaged . | . . . . Parts Stolen . | . . . . Parts Stripped . | . . . . Power Chain Reactions . | . . . . Alert | -11 -10 -9 -9 ------- Run | Yrd Mat Mat Sto Peak Influence 704 | 40 241 166 704 Initial 101 | . 26 101 69 Average 386 | 20 147 126 473 Maximum Alert Level 3 | . 1 . 3 Low Security (%) 24 | 100 58 100 7 Level 1 23 | . 41 . 26 Level 2 48 | . . . 62 Level 3 3 | . . . 3 Level 4 . | . . . . Level 5 . | . . . . High Security . | . . . . Max Security . | . . . . Squads Dispatched 7 | . 1 1 5 Investigation 1 | . . . 1 Extermination . | . . . . Reinforcement 3 | . 1 1 1 Assault 2 | . . . 2 Garrison 1 | . . . 1 Intercept . | . . . . Searches Triggered . | . . . . Construction Impeded . | . . . . Haulers Reinforced . | . . . . Active Scanning Responses . | . . . . Cargo Convoy Interrupts . | . . . . Stealth | -11 -10 -9 -9 --------- Run | Yrd Mat Mat Sto Distress Signals 2 | . . . 2 Communications Jammed . | . . . . Distress Signals . | . . . . Times Spotted 54 | . 8 3 43 Peak Tracking Total 7 | . 6 2 7 Tactical Retreats 11 | . 3 . 8 Traps | -11 -10 -9 -9 ------- Run | Yrd Mat Mat Sto Traps Triggered 2 | . . . 2 Indirectly . | . . . . Trap Hack Attempts . | . . . . Triggered . | . . . . Disarmed . | . . . . Reprogrammed . | . . . . Reused . | . . . . Traps Extracted . | . . . . Installed . | . . . . Triggered 3 | . . . 3 Machines | -11 -10 -9 -9 ---------- Run | Yrd Mat Mat Sto Machines Disabled 6 | . . . 6 Max in Single Turn 1 | . . . 1 Garrison Access 1 | . . . 1 Machines Repaired . | . . . . Machines Dismantled . | . . . . Machines Sabotaged . | . . . . Overloaded Fab Kills . | . . . . Hacking | -11 -10 -9 -9 --------- Run | Yrd Mat Mat Sto Machines Accessed 9 | . 2 . 7 Terminals 9 | . 2 . 7 Fabricators . | . . . . Repair Stations . | . . . . Recycling Units . | . . . . Scanalyzers . | . . . . Garrison Access . | . . . . Total Hacks 22 | . 8 . 14 Successful 7 | . 1 . 6 Failed 15 | . 7 . 8 Catastrophic 2 | . 1 . 1 Database Lockouts . | . . . . Manual 7 | . 7 . . Terminals 22 | . 8 . 14 Fabricators . | . . . . Repair Stations . | . . . . Recycling Units . | . . . . Scanalyzers . | . . . . Garrison Access . | . . . . Terminal Hacks 7 | . 1 . 6 Part Schematic 1 | . . . 1 Open Door 3 | . . . 3 Emergency Access Points 1 | . . . 1 Alert Level 1 | . 1 . . Assault Status 1 | . . . 1 Fabricator Hacks . | . . . . Repair Station Hacks . | . . . . Recycling Unit Hacks . | . . . . Scanalyzer . | . . . . Garrison Access Hacks . | . . . . Unauthorized Hacks . | . . . . Terminals . | . . . . Fabricators . | . . . . Repair Stations . | . . . . Recycling Units . | . . . . Scanalyzers . | . . . . Garrison Access . | . . . . Data Cores Recovered . | . . . . Used . | . . . . Hacking Detections 8 | . 2 . 6 Full Trace Events . | . . . . Feedback Events . | . . . . Feedback Blocked . | . . . . Robot Schematics Acquired . | . . . . Robots Built . | . . . . Authchips . | . . . . Time . | . . . . Total Robot Build Rating . | . . . . Part Schematics Acquired 1 | . . . 1 Parts Built . | . . . . Authchips . | . . . . Time . | . . . . Total Part Build Rating . | . . . . Parts Repaired . | . . . . Time . | . . . . Parts Recycled . | . . . . Recycled Matter . | . . . . Retrieved Matter . | . . . . Retrieved Components . | . . . . Parts Scanalyzed . | . . . . Part Schematics Acquired . | . . . . Parts Damaged . | . . . . Bothacking | -11 -10 -9 -9 ------------ Run | Yrd Mat Mat Sto Used RIF Installer . | . . . . Robots Hacked . | . . . . Non-combat . | . . . . Combat . | . . . . Robot Hacks Applied . | . . . . Relay Couplers Released . | . . . . Fabnet Peak Effective % . | . . . . Robots Rewired . | . . . . Allies Hacked . | . . . . Hacks Repelled . | . . . . Allies | -11 -10 -9 -9 -------- Run | Yrd Mat Mat Sto Total Allies 10 | . . . 10 Largest Group 10 | . . . 10 Highest-Rated Group 88 | . . . 88 Highest-Rated Ally 16 | . . . 16 Total Orders 2 | . . . 2 ROAM 1 | . . . 1 EXPLORE 1 | . . . 1 Ally Attacks 44 | . . . 44 Total Damage 395 | . . . 395 Kills 6 | . . . 6 Allies Corrupted . | . . . . Allies Melted . | . . . . Intel | -11 -10 -9 -9 ------- Run | Yrd Mat Mat Sto Robot Analysis Total . | . . . . Derelict Logs Recovered . | . . . . Drone Launches 14 | . . . 14 Drone Recoveries 2 | . . . 2 Exploration | -11 -10 -9 -9 ------------- Run | Yrd Mat Mat Sto Turns Passed 2161 | 164 202 140 1655 Spaces Moved 992 | 68 120 74 730 Core . | . . . . Treads 4 | . . 4 . Legs 926 | 68 120 70 668 Wheels 62 | . . . 62 Hover . | . . . . Flight . | . . . . Fastest Speed 105 | 120 120 120 105 Average Speed 141 | 120 120 122 148 Slowest Speed 260 | 120 120 160 260 Overloaded Moves . | . . . . Propulsion Burnouts . | . . . . Robots Hopped . | . . . . Cave-ins Triggered 1 | . . . 1 Exploration Rate (%) 31 | 4 27 12 84 Regions Visited 3 Branch Regions 1 Pre-discovered Areas . | . . . . Known Exits Taken . | . . . . Unknown Exits Taken 3 | 1 1 1 . Scrap Searched . | . . . . Spaces Dug 8 | . . . 8 Terrain Destroyed 34 | . . . 34 Melee 8 | . . . 8 Projectile . | . . . . AOE 26 | . . . 26 Terrain Rammed . | . . . . Walls Destroyed . | . . . . Machines Disabled . | . . . . Actions | -11 -10 -9 -9 --------- Run | Yrd Mat Mat Sto Total 1404 | 110 148 103 1043 Wait 69 | 11 7 8 43 Move 989 | 67 119 73 730 Hop . | . . . . Pick Up 21 | 3 2 2 14 Fast Attach 16 | 1 . 1 14 Attach 8 | 1 . 2 5 Detach 5 | 1 . 1 3 Swap 33 | . 1 2 30 Drop 42 | 1 3 3 35 Fire 170 | 25 16 11 118 Melee 35 | . . . 35 Ram . | . . . . Kick . | . . . . Crush . | . . . . Escape Stasis 8 | . . . 8 Rewire 2 | . . . 2 Trap . | . . . . Miscellaneous 6 | . . . 6 Route ------- -11/Scrapyard -10/Materials -9/Materials -9/Storage History --------- Turn | Location | Event 18 | -11/Scrapyard | Discovered new exit (range 3) 165 | -11/Scrapyard | Entered Materials 311 | -10/Materials | Build established: Mutant 361 | -10/Materials | Discovered new exit (range 5) 367 | -10/Materials | Entered another Materials area 367 | -9/Materials | Evolved 2 slots: Propulsion x1, Utility x1 476 | -9/Materials | Discovered new exit (range 16) 507 | -9/Materials | Entered Storage 899 | -9/Storage | Build established: Scavenger-Mutant 903 | -9/Storage | Core integrity fell below 50% 1199 | -9/Storage | Build established: Mutant 1312 | -9/Storage | Crushed by falling debris 1356 | -9/Storage | Lost 3 parts (1n2u) 1370 | -9/Storage | Lost 6 allies 1585 | -9/Storage | Assisted by bots powering up and referring to "LRC-V3" 1594 | -9/Storage | Garrison activated, responded to threat 1665 | -9/Storage | Lost 7 allies 1714 | -9/Storage | Lost 3 allies 1747 | -9/Storage | Core integrity fell below 20% 1774 | -9/Storage | Lost 3 parts (2n1w) 1909 | -9/Storage | Build established: Scavenger-Mutant 2107 | -9/Storage | First assault squad dispatched 2163 | -9/Storage | Core destroyed Last Messages --------------- 02147_ Acquired 3 matter. 02148_ Critical hit (Burn: +37). 02150_ Acquired 3 matter. 02150_ Hvy. Assault Rifle destroyed. 02154_ System corrupted: Heat flow error (+206). 02156_ Overheating: Energy bleed (-67). 02157_ Acquired Heat Sink. 02158_ Overheating: Heat Sink damaged (-10). 02158_ Overheating: Aluminum Leg damaged (-3). 02158_ Overheating: Com. Ion Cannon damaged (-95). 02158_ Overheating: Machine Analyzer damaged (-4). 02158_ Aluminum Leg destroyed. 02159_ Overheating: Energy bleed (-48). 02160_ Overheating: Aluminum Leg damaged (-21). 02162_ Overheating: Lrg. Storage Unit damaged (-94). 02162_ Overheating: Aluminum Leg damaged (-4). 02162_ Overheating: Heat Sink damaged (-7). 02162_ Overheating: Com. Ion Cannon damaged (-18). 02162_ Aluminum Leg destroyed. 02163_ Overheating: Core damaged (-76). Map ----- +----------------------------------------------------+ | " #?# # ! # """ #???????????? | | " #?# # # #???#???????? | | ### ? # ![###+########?????????? | | % ######+##/##### # #?????????? | | = % + #?????????? | | =##### # #?????#???? | | ##+##### [##### # #?????????? | | / %+ ##??# # #?????#???? | | # % ###### ##??# # #?????????? | | # ## ### ##??# #####+##?????????? | | # ###?## #?#?# #??????????? | | # #????# #???# #??????????? | | # #????# #???# ##?????????? | | #############!#???# ##?????????# | | #???????# + #???##########?????????? | | #???????###T# #?#####?#?###??????????? | | ##????????### #??????????????#???????? | | #???#?#?????# #???##?#???#???????????? | | ##### ##???## ####?####???????#??????? | | #???# ##??? ??????????????? | | #???# T #???#? ??"""?????????? | | """"" #???# ###???? ""=!"?#??#????? | | """"" #???## ####????" "!=" #????#??? | | """"" #????# #????# ?"!!%"" #???????? | | ?????# #???## ?"gg"" #???????? | | #######?????# #????# " @=* #??????#? | | " ##????????# ##???# !*=! #???????# | | " "#????????# ##########+#####??#????? | | T#?????#### #??????????? | | "#######T## +??????????? | | ###!! [! + #??????????? | | #?# #####+##### #??????????? | | ###!!!! ## # +??????????? | | ########### # #?? ???????? | | ##?????????# # #??????????? | | ############ # # ?????????? | | ]## # !# "#??????????? | | #### """ """ # ! # "%#??????????? | | #### """ """ # ! # " ??????????? | | %#=""" """ # # ? ????????? | | =%+*% # # ?????????? | | [# ##############+?????????? | | #### #????#?????????????#???? | | ??# ###??????????? ???"?????? | | #####" "####????????????? ???"?????? | | #???#"R"#????????????????????"?????? | | #???#"""##??????????????""""?T?????? | | #???#####??#?#????#?????""""?"?????? | | #?????????????????????? """" "?????? | | #???????????????????????""""?"?????? | +----------------------------------------------------+ Best States ------------- Heat Dissipation 56 Energy Generation 14 Energy Capacity 280 Matter Stores 300 Matter Capacity 300 Sight Range 16 Terrain Scan Range 16 Terrain Scan Density 10 Additional Mass Support 6 Armor Coverage 225 Evasion (%) 55 Recoil Reduction 1 Item Schematics ----------------- Great Maul | -9/Storage | Hacked Robot Schematics ------------------ None Fabricated ------------ Nothing Alien Tech Used ----------------- None Achievements -------------- None Challenges ------------ None Game ------ Seed DeuteriumDerelictManipulator Manual? 0 Play Time 00:24:03 Cumulative 159.6 hours Start 2024.09.02 @ 15:25:18 End 2024.09.02 @ 19:55:05 Sessions 3 Manual Loads 0 Difficulty Rogue Special Mode None Game No. 287 Rogue 283 Adventurer 0 Explorer 4 Win Type - Total 0 Types 0/0/0/0/0/0/0/0/0 Lore% 20 Gallery% 46 Achievement% 34 Wizard Run 0 Options --------- Layout 1 ASCII 0 Keyboard 1 Movement Arrows Keybinds 0 Fullscreen 1 Font 32/SmallcapsGlow Map View 130x35 Zoom Use 0% Tactical HUD 1 Map Filters NONE Filters NONE Steam 0 RUN: 62e27daa-5b94-44ce-9685-541e4e52649e